[Event "*** Titled Tuesday Blitz"]
[Site "Chess.com"]
[Date "2020.12.01"]
[Round "5"]
[White "ExtremeLearner"]
[Black "Witik"]
[Result "0-1"]
[WhiteElo "2410"]
[BlackElo "2610"]
[TimeControl "180+1"]
[EndTime "10:56:52 PST"]
[Termination "Witik won by checkmate"]

1. Nf3 {[%clk 0:03:00.9]} 1... Nf6 {[%clk 0:02:59.2]} 2. g3 {[%clk 0:02:56.8]}
2... d5 {[%clk 0:02:58.8]} 3. d4 {[%clk 0:02:57.2]} 3... c6 {[%clk 0:02:55.6]}
4. Bg2 {[%clk 0:02:56.6]} 4... Bf5 {[%clk 0:02:54.7]} 5. c4 {[%clk 0:02:56.9]}
5... e6 {[%clk 0:02:54.7]} 6. Nc3 {[%clk 0:02:54.7]} 6... Nbd7 {[%clk
0:02:52.9]} 7. Qb3 {[%clk 0:02:52.5]} 7... Qb6 {[%clk 0:02:51.4]} 8. c5 {[%clk
0:02:50.2]} 8... Qa6 {[%clk 0:02:51.1]} 9. Bf1 {[%clk 0:02:45.7]} 9... Ne4
{[%clk 0:02:29.4]} 10. e3 {[%clk 0:02:16.6]} 10... b5 {[%clk 0:02:13.3]} 11. a4
{[%clk 0:02:02.6]} 11... Qa5 {[%clk 0:02:08.4]} 12. Bd2 {[%clk 0:01:42.6]} 12...
Nxd2 {[%clk 0:02:00.2]} 13. Kxd2 {[%clk 0:01:38.4]} 13... Bxc5 {[%clk
0:01:38.8]} 14. dxc5 {[%clk 0:00:46]} 14... Nxc5 {[%clk 0:01:37.7]} 15. Qd1
{[%clk 0:00:39.2]} 15... b4 {[%clk 0:01:23.1]} 16. Na2 {[%clk 0:00:26.2]} 16...
Ne4+ {[%clk 0:01:18.9]} 17. Ke2 {[%clk 0:00:16.6]} 17... c5 {[%clk 0:01:00]} 18.
Nh4 {[%clk 0:00:14.5]} 18... Bg6 {[%clk 0:00:48.7]} 19. f3 {[%clk 0:00:14.2]}
19... Nd6 {[%clk 0:00:46]} 20. Kf2 {[%clk 0:00:14.3]} 20... O-O {[%clk
0:00:39.3]} 21. Nxg6 {[%clk 0:00:14.4]} 21... fxg6 {[%clk 0:00:38.1]} 22. Bh3
{[%clk 0:00:13.6]} 22... Rf6 {[%clk 0:00:37]} 23. Kg2 {[%clk 0:00:12.4]} 23...
Raf8 {[%clk 0:00:36.8]} 24. Rf1 {[%clk 0:00:11.6]} 24... Nc4 {[%clk 0:00:36.9]}
25. Qe2 {[%clk 0:00:09.7]} 25... Qc7 {[%clk 0:00:33.1]} 26. b3 {[%clk
0:00:09.3]} 26... Na5 {[%clk 0:00:29.4]} 27. Rab1 {[%clk 0:00:09.1]} 27... Qe5
{[%clk 0:00:29.6]} 28. f4 {[%clk 0:00:07.3]} 28... Qd6 {[%clk 0:00:25.2]} 29.
Kg1 {[%clk 0:00:07.5]} 29... Nc6 {[%clk 0:00:20.6]} 30. Bg2 {[%clk 0:00:07.9]}
30... e5 {[%clk 0:00:20.8]} 31. Rbd1 {[%clk 0:00:07.3]} 31... d4 {[%clk
0:00:19.6]} 32. exd4 {[%clk 0:00:07.8]} 32... Nxd4 {[%clk 0:00:19.6]} 33. Qc4+
{[%clk 0:00:08.3]} 33... Kh8 {[%clk 0:00:19.4]} 34. fxe5 {[%clk 0:00:08.6]}
34... Qxe5 {[%clk 0:00:18.7]} 35. Rxf6 {[%clk 0:00:08.5]} 35... gxf6 {[%clk
0:00:15.7]} 36. Qd3 {[%clk 0:00:08.3]} 36... f5 {[%clk 0:00:14.4]} 37. Qd2
{[%clk 0:00:07.5]} 37... f4 {[%clk 0:00:13.8]} 38. Re1 {[%clk 0:00:07.5]} 38...
Qf6 {[%clk 0:00:09.5]} 39. gxf4 {[%clk 0:00:07.9]} 39... Nxb3 {[%clk 0:00:09.6]}
40. Qe3 {[%clk 0:00:07.1]} 40... Nd4 {[%clk 0:00:06.6]} 41. Nxb4 {[%clk
0:00:06.7]} 41... cxb4 {[%clk 0:00:06.6]} 42. Bd5 {[%clk 0:00:06.9]} 42... Qxf4
{[%clk 0:00:05.3]} 43. Qxf4 {[%clk 0:00:07.8]} 43... Rxf4 {[%clk 0:00:05.3]} 44.
Re8+ {[%clk 0:00:08.7]} 44... Kg7 {[%clk 0:00:05.2]} 45. Rg8+ {[%clk 0:00:09.6]}
45... Kh6 {[%clk 0:00:05.3]} 46. Rb8 {[%clk 0:00:10.5]} 46... a5 {[%clk
0:00:05.2]} 47. Rb7 {[%clk 0:00:10.8]} 47... Rf5 {[%clk 0:00:05]} 48. Bg8 {[%clk
0:00:11.3]} 48... Kg5 {[%clk 0:00:04.6]} 49. Bxh7 {[%clk 0:00:11.8]} 49... Rf3
{[%clk 0:00:04.6]} 50. Rb6 {[%clk 0:00:12.3]} 50... Ra3 {[%clk 0:00:04.3]} 51.
Rxg6+ {[%clk 0:00:11.7]} 51... Kf4 {[%clk 0:00:03.9]} 52. Rd6 {[%clk 0:00:09.6]}
52... Nf3+ {[%clk 0:00:03.2]} 53. Kf2 {[%clk 0:00:09.1]} 53... Ra2+ {[%clk
0:00:03.7]} 54. Kf1 {[%clk 0:00:08.9]} 54... Nxh2+ {[%clk 0:00:04.1]} 55. Ke1
{[%clk 0:00:09.5]} 55... Nf3+ {[%clk 0:00:05]} 56. Kd1 {[%clk 0:00:10.4]} 56...
b3 {[%clk 0:00:05.4]} 57. Rf6+ {[%clk 0:00:10.9]} 57... Ke3 {[%clk 0:00:05.4]}
58. Re6+ {[%clk 0:00:11]} 58... Kf2 {[%clk 0:00:05.6]} 59. Rb6 {[%clk
0:00:09.6]} 59... Ra3 {[%clk 0:00:04.5]} 60. Kc1 {[%clk 0:00:09.7]} 60... Nd4
{[%clk 0:00:04.5]} 61. Kb2 {[%clk 0:00:09.6]} 61... Rxa4 {[%clk 0:00:04.9]} 62.
Bg8 {[%clk 0:00:08.1]} 62... Ke3 {[%clk 0:00:03.8]} 63. Bxb3 {[%clk 0:00:08.2]}
63... Rb4 {[%clk 0:00:04.2]} 64. Rxb4 {[%clk 0:00:07.6]} 64... axb4 {[%clk
0:00:05.1]} 65. Bf7 {[%clk 0:00:06.9]} 65... Kd2 {[%clk 0:00:05.6]} 66. Bg8
{[%clk 0:00:07.3]} 66... Kd3 {[%clk 0:00:06]} 67. Bf7 {[%clk 0:00:07.8]} 67...
Ke4 {[%clk 0:00:06.5]} 68. Bg6+ {[%clk 0:00:08.2]} 68... Ke5 {[%clk 0:00:07.4]}
69. Bf7 {[%clk 0:00:08.7]} 69... Kd6 {[%clk 0:00:08.3]} 70. Bg8 {[%clk
0:00:09.2]} 70... Kc5 {[%clk 0:00:09.2]} 71. Bf7 {[%clk 0:00:09.7]} 71... Nb5
{[%clk 0:00:09.7]} 72. Bg8 {[%clk 0:00:10.3]} 72... Nd6 {[%clk 0:00:10.6]} 73.
Be6 {[%clk 0:00:10.3]} 73... Ne4 {[%clk 0:00:10.7]} 74. Bg8 {[%clk 0:00:10.3]}
74... Ng5 {[%clk 0:00:11.6]} 75. Bb3 {[%clk 0:00:09.6]} 75... Nh3 {[%clk
0:00:11.1]} 76. Ba2 {[%clk 0:00:10.1]} 76... Nf4 {[%clk 0:00:12]} 77. Bg8 {[%clk
0:00:10.5]} 77... Nd3+ {[%clk 0:00:12.3]} 78. Kc2 {[%clk 0:00:10.7]} 78... Ne5
{[%clk 0:00:13.2]} 79. Kb2 {[%clk 0:00:11.3]} 79... Kb5 {[%clk 0:00:13.6]} 80.
Be6 {[%clk 0:00:10.8]} 80... Nd3+ {[%clk 0:00:13.3]} 81. Kb3 {[%clk 0:00:10.4]}
81... Nc5+ {[%clk 0:00:14.2]} 82. Kb2 {[%clk 0:00:10.9]} 82... Nxe6 {[%clk
0:00:14.6]} 83. Kc2 {[%clk 0:00:11.8]} 83... Kc4 {[%clk 0:00:14.9]} 84. Kb2
{[%clk 0:00:12.7]} 84... b3 {[%clk 0:00:14.9]} 85. Kb1 {[%clk 0:00:13.6]} 85...
Kc3 {[%clk 0:00:15.1]} 86. Kc1 {[%clk 0:00:13.9]} 86... Nd4 {[%clk 0:00:15.2]}
87. Kb1 {[%clk 0:00:14.8]} 87... b2 {[%clk 0:00:15.2]} 88. Ka2 {[%clk
0:00:15.7]} 88... Kc2 {[%clk 0:00:15.5]} 89. Ka3 {[%clk 0:00:16.6]} 89... b1=Q
{[%clk 0:00:15.6]} 90. Ka4 {[%clk 0:00:17.2]} 90... Qb5+ {[%clk 0:00:15.5]} 91.
Ka3 {[%clk 0:00:17.3]} 91... Qb3# {[%clk 0:00:15.7]} 0-1

[Event "*** Titled Tuesday Blitz"]
[Site "Chess.com"]
[Date "2020.12.01"]
[Round "5"]
[White "dopolian"]
[Black "szabadaba"]
[Result "0-1"]
[WhiteElo "2426"]
[BlackElo "2662"]
[TimeControl "180+1"]
[EndTime "10:56:59 PST"]
[Termination "szabadaba won on time"]

1. e4 {[%clk 0:03:00.6]} 1... c6 {[%clk 0:02:59.9]} 2. Nc3 {[%clk 0:03:00.2]}
2... d5 {[%clk 0:03:00.4]} 3. Nf3 {[%clk 0:02:59.6]} 3... dxe4 {[%clk
0:02:59.7]} 4. Nxe4 {[%clk 0:03:00.5]} 4... Nd7 {[%clk 0:03:00]} 5. Qe2 {[%clk
0:02:59.4]} 5... Ndf6 {[%clk 0:02:59.7]} 6. d4 {[%clk 0:02:55.8]} 6... Bg4
{[%clk 0:02:59.3]} 7. h3 {[%clk 0:02:53.9]} 7... Bxf3 {[%clk 0:02:58.4]} 8. Qxf3
{[%clk 0:02:54.8]} 8... Qxd4 {[%clk 0:02:58.4]} 9. Bd3 {[%clk 0:02:54.2]} 9...
e6 {[%clk 0:02:53.4]} 10. Be3 {[%clk 0:02:53.5]} 10... Qb4+ {[%clk 0:02:29.8]}
11. c3 {[%clk 0:02:43.5]} 11... Qa5 {[%clk 0:02:29.4]} 12. b4 {[%clk 0:02:39.6]}
12... Qc7 {[%clk 0:01:55.9]} 13. O-O {[%clk 0:02:30.4]} 13... Nxe4 {[%clk
0:01:55.4]} 14. Bxe4 {[%clk 0:02:26.8]} 14... Nf6 {[%clk 0:01:55.2]} 15. Bc2
{[%clk 0:02:20.7]} 15... Be7 {[%clk 0:01:53.7]} 16. Bf4 {[%clk 0:02:14.7]} 16...
Qb6 {[%clk 0:01:53.2]} 17. Be3 {[%clk 0:02:08]} 17... Qb5 {[%clk 0:01:50.7]} 18.
a4 {[%clk 0:01:56.9]} 18... Qd5 {[%clk 0:01:44.7]} 19. Qg3 {[%clk 0:01:39]}
19... Bd6 {[%clk 0:01:33.6]} 20. Qh4 {[%clk 0:01:18.7]} 20... Qe5 {[%clk
0:01:33.1]} 21. Rfd1 {[%clk 0:01:08.9]} 21... Qh2+ {[%clk 0:01:21.1]} 22. Kf1
{[%clk 0:01:08.6]} 22... Be7 {[%clk 0:01:20.7]} 23. Bg5 {[%clk 0:00:55.9]} 23...
Qh1+ {[%clk 0:01:07.1]} 24. Ke2 {[%clk 0:00:54.5]} 24... Qxg2 {[%clk 0:01:07.5]}
25. a5 {[%clk 0:00:36]} 25... a6 {[%clk 0:01:02.5]} 26. c4 {[%clk 0:00:30.8]}
26... h6 {[%clk 0:00:59.5]} 27. Rg1 {[%clk 0:00:23.5]} 27... Qh2 {[%clk
0:00:44.1]} 28. Bf4 {[%clk 0:00:20.6]} 28... g5 {[%clk 0:00:43.5]} 29. Rxg5
{[%clk 0:00:16.8]} 29... Qxf4 {[%clk 0:00:24.7]} 30. Qxf4 {[%clk 0:00:17.7]}
30... hxg5 {[%clk 0:00:24.3]} 31. Qxg5 {[%clk 0:00:18.6]} 31... Rxh3 {[%clk
0:00:20.3]} 32. c5 {[%clk 0:00:13.8]} 32... O-O-O {[%clk 0:00:17.3]} 33. Rd1
{[%clk 0:00:13.8]} 33... Rg8 {[%clk 0:00:17]} 34. Qf4 {[%clk 0:00:11.8]} 34...
Rg4 {[%clk 0:00:13.6]} 35. Qe5 {[%clk 0:00:09.1]} 35... Rh5 {[%clk 0:00:09.1]}
36. Qe3 {[%clk 0:00:07.9]} 36... Rxb4 {[%clk 0:00:07.8]} 37. Qg3 {[%clk
0:00:05.8]} 37... Rg4 {[%clk 0:00:05.7]} 38. Qf3 {[%clk 0:00:05.8]} 38... Re5+
{[%clk 0:00:05.4]} 39. Kf1 {[%clk 0:00:05.7]} 39... Rc4 {[%clk 0:00:05.3]} 40.
Bd3 {[%clk 0:00:05.3]} 40... Rcxc5 {[%clk 0:00:05.5]} 41. Re1 {[%clk 0:00:05.4]}
41... Rxe1+ {[%clk 0:00:04.7]} 42. Kxe1 {[%clk 0:00:06.3]} 42... Rxa5 {[%clk
0:00:05.1]} 43. Qh3 {[%clk 0:00:06]} 43... Re5+ {[%clk 0:00:05.1]} 44. Kf1
{[%clk 0:00:06]} 44... Rd5 {[%clk 0:00:06]} 45. Qh8+ {[%clk 0:00:05.3]} 45...
Rd8 {[%clk 0:00:05.3]} 46. Qg7 {[%clk 0:00:04.8]} 46... Rxd3 {[%clk 0:00:04.8]}
47. Qxf7 {[%clk 0:00:04.3]} 47... Rd7 {[%clk 0:00:05.7]} 48. Qg6 {[%clk
0:00:03.7]} 48... Kc7 {[%clk 0:00:05.9]} 49. Qf7 {[%clk 0:00:04.2]} 49... Nd5
{[%clk 0:00:06.8]} 50. Qxe6 {[%clk 0:00:04.4]} 50... a5 {[%clk 0:00:07.3]} 51.
Qe5+ {[%clk 0:00:04.8]} 51... Bd6 {[%clk 0:00:06.6]} 52. Qe4 {[%clk 0:00:05.3]}
52... b5 {[%clk 0:00:06.1]} 53. Qd4 {[%clk 0:00:03.3]} 53... a4 {[%clk
0:00:04.8]} 54. Qa7+ {[%clk 0:00:02.6]} 54... Kd8 {[%clk 0:00:04.5]} 55. Qa8+
{[%clk 0:00:03.1]} 55... Kc7 {[%clk 0:00:03.2]} 56. Qa7+ {[%clk 0:00:03.2]}
56... Kd8 {[%clk 0:00:02.3]} 57. Qa8+ {[%clk 0:00:03.4]} 57... Ke7 {[%clk
0:00:02.9]} 58. Qxc6 {[%clk 0:00:03.7]} 58... Nc7 {[%clk 0:00:02.6]} 59. Qb6
{[%clk 0:00:02.5]} 59... Rd8 {[%clk 0:00:02]} 60. Qb7 {[%clk 0:00:02.3]} 60...
Ra8 {[%clk 0:00:02.1]} 61. Qc6 {[%clk 0:00:01.9]} 61... a3 {[%clk 0:00:01.8]}
62. Qe4+ {[%clk 0:00:02.8]} 62... Kd7 {[%clk 0:00:01.3]} 63. Qf5+ {[%clk
0:00:03.3]} 63... Kd8 {[%clk 0:00:01.5]} 64. Qg5+ {[%clk 0:00:02.8]} 64... Kc8
{[%clk 0:00:02.4]} 65. Qg8+ {[%clk 0:00:02.6]} 65... Kb7 {[%clk 0:00:03.3]} 66.
Qg2+ {[%clk 0:00:02.3]} 66... Kb6 {[%clk 0:00:04.2]} 67. Qg4 {[%clk 0:00:01.9]}
67... a2 {[%clk 0:00:04.7]} 68. Qd4+ {[%clk 0:00:02.3]} 68... Bc5 {[%clk
0:00:05.6]} 69. Qa1 {[%clk 0:00:02.4]} 69... Ka5 {[%clk 0:00:06.4]} 70. Qc3+
{[%clk 0:00:02.4]} 70... Kb6 {[%clk 0:00:07.3]} 71. Qa1 {[%clk 0:00:03]} 71...
b4 {[%clk 0:00:07.3]} 72. Ke2 {[%clk 0:00:03.5]} 72... Nb5 {[%clk 0:00:08.1]}
73. Kd2 {[%clk 0:00:03.4]} 73... Nc3 {[%clk 0:00:09]} 74. Kc2 {[%clk 0:00:03.7]}
74... Kb5 {[%clk 0:00:09.4]} 75. Kb3 {[%clk 0:00:04]} 75... Ra3+ {[%clk
0:00:10.3]} 76. Kc2 {[%clk 0:00:03.7]} 76... b3+ {[%clk 0:00:10.8]} 77. Kxc3
{[%clk 0:00:03.2]} 77... b2+ {[%clk 0:00:10.6]} 78. Kxb2 {[%clk 0:00:03.4]}
78... Ra4 {[%clk 0:00:10.6]} 79. Qf1+ {[%clk 0:00:02.7]} 79... Ka5 {[%clk
0:00:10.7]} 80. Kb3 {[%clk 0:00:02]} 80... Bb4 {[%clk 0:00:11.6]} 81. Qc4 {[%clk
0:00:01.6]} 81... Ra3+ {[%clk 0:00:11.7]} 82. Kc2 {[%clk 0:00:01.4]} 82... a1=Q
{[%clk 0:00:12.6]} 83. Qd5+ {[%clk 0:00:01.9]} 83... Ka4 {[%clk 0:00:11.9]} 84.
Qc6+ {[%clk 0:00:02.1]} 84... Ka5 {[%clk 0:00:12]} 85. Qa8+ {[%clk 0:00:02.5]}
85... Kb5 {[%clk 0:00:12.2]} 86. Qb8+ {[%clk 0:00:02.9]} 86... Kc5 {[%clk
0:00:13.1]} 87. Qc7+ {[%clk 0:00:03.3]} 87... Kd5 {[%clk 0:00:14]} 88. Qd7+
{[%clk 0:00:03.8]} 88... Bd6 {[%clk 0:00:13.7]} 89. Qf7+ {[%clk 0:00:03.7]}
89... Kc5 {[%clk 0:00:13.7]} 90. Qf5+ {[%clk 0:00:03.8]} 90... Qe5 {[%clk
0:00:13.4]} 91. Qc8+ {[%clk 0:00:04.3]} 91... Kd5 {[%clk 0:00:13.1]} 92. Qg8+
{[%clk 0:00:03.5]} 92... Kd4 {[%clk 0:00:13.1]} 93. Qg4+ {[%clk 0:00:02.5]}
93... Qe4+ {[%clk 0:00:13.5]} 0-1

[Event "*** Titled Tuesday Blitz"]
[Site "Chess.com"]
[Date "2020.12.01"]
[Round "5"]
[White "awesomevishesh"]
[Black "JoliyRoger"]
[Result "0-1"]
[WhiteElo "2540"]
[BlackElo "2396"]
[TimeControl "180+1"]
[EndTime "10:57:13 PST"]
[Termination "JoliyRoger won on time"]

1. e4 {[%clk 0:03:00.9]} 1... c6 {[%clk 0:03:00]} 2. Nf3 {[%clk 0:02:59.8]} 2...
d5 {[%clk 0:03:00.9]} 3. d3 {[%clk 0:03:00.2]} 3... Bg4 {[%clk 0:02:58.7]} 4.
Nbd2 {[%clk 0:02:56.2]} 4... e6 {[%clk 0:02:57.7]} 5. h3 {[%clk 0:02:55.7]} 5...
Bxf3 {[%clk 0:02:55.8]} 6. Qxf3 {[%clk 0:02:52]} 6... Nd7 {[%clk 0:02:53.5]} 7.
g3 {[%clk 0:02:51.3]} 7... g6 {[%clk 0:02:52.7]} 8. Bg2 {[%clk 0:02:51.2]} 8...
Bg7 {[%clk 0:02:53.4]} 9. O-O {[%clk 0:02:50.9]} 9... Ne7 {[%clk 0:02:50.4]} 10.
Qe2 {[%clk 0:02:49.6]} 10... O-O {[%clk 0:02:50.3]} 11. Nf3 {[%clk 0:02:49.2]}
11... e5 {[%clk 0:02:35.3]} 12. h4 {[%clk 0:02:41.8]} 12... Qc7 {[%clk
0:02:05.1]} 13. b3 {[%clk 0:02:29.6]} 13... a5 {[%clk 0:01:59.3]} 14. a4 {[%clk
0:02:29]} 14... Rfe8 {[%clk 0:01:33.9]} 15. Re1 {[%clk 0:02:27.5]} 15... d4
{[%clk 0:01:20.5]} 16. h5 {[%clk 0:02:17.3]} 16... b5 {[%clk 0:01:07.7]} 17. Bd2
{[%clk 0:02:13.1]} 17... Nc5 {[%clk 0:01:01.9]} 18. Nh4 {[%clk 0:01:55.1]} 18...
Bf6 {[%clk 0:00:51.3]} 19. Nf3 {[%clk 0:01:51.7]} 19... Reb8 {[%clk 0:00:49.8]}
20. Nh2 {[%clk 0:01:49.5]} 20... bxa4 {[%clk 0:00:47.5]} 21. bxa4 {[%clk
0:01:49]} 21... Rb2 {[%clk 0:00:47.6]} 22. Rec1 {[%clk 0:01:45.8]} 22... Ne6
{[%clk 0:00:41.9]} 23. Ng4 {[%clk 0:01:44.6]} 23... Bg7 {[%clk 0:00:42.3]} 24.
h6 {[%clk 0:01:38.4]} 24... Bh8 {[%clk 0:00:40]} 25. Bh3 {[%clk 0:01:30.7]}
25... c5 {[%clk 0:00:35.3]} 26. Qf3 {[%clk 0:01:27.9]} 26... Nc6 {[%clk
0:00:26.6]} 27. Nf6+ {[%clk 0:01:10.9]} 27... Bxf6 {[%clk 0:00:26.2]} 28. Qxf6
{[%clk 0:01:11.8]} 28... Qd8 {[%clk 0:00:24.2]} 29. Qf3 {[%clk 0:01:11.2]} 29...
Qe7 {[%clk 0:00:22.2]} 30. Qd1 {[%clk 0:01:04.9]} 30... Rab8 {[%clk 0:00:19.4]}
31. Rcb1 {[%clk 0:01:04.5]} 31... Rxb1 {[%clk 0:00:17.8]} 32. Rxb1 {[%clk
0:01:04.2]} 32... Nb4 {[%clk 0:00:18.5]} 33. Bg4 {[%clk 0:00:42.3]} 33... Qf6
{[%clk 0:00:18.6]} 34. Kg2 {[%clk 0:00:39.8]} 34... Rb6 {[%clk 0:00:17.3]} 35.
Qe2 {[%clk 0:00:37.4]} 35... Nf8 {[%clk 0:00:17]} 36. f4 {[%clk 0:00:27.2]}
36... Ne6 {[%clk 0:00:14.1]} 37. f5 {[%clk 0:00:21.2]} 37... Nf8 {[%clk
0:00:13.6]} 38. Rf1 {[%clk 0:00:16.8]} 38... Qe7 {[%clk 0:00:14.1]} 39. fxg6
{[%clk 0:00:14]} 39... hxg6 {[%clk 0:00:11.3]} 40. Bc1 {[%clk 0:00:08.1]} 40...
Nh7 {[%clk 0:00:09.9]} 41. Qf3 {[%clk 0:00:06.8]} 41... Rf6 {[%clk 0:00:10.4]}
42. Qe2 {[%clk 0:00:06.5]} 42... Rxf1 {[%clk 0:00:10.8]} 43. Kxf1 {[%clk
0:00:07.1]} 43... Qd6 {[%clk 0:00:10]} 44. Kg2 {[%clk 0:00:06.8]} 44... Nf6
{[%clk 0:00:10.5]} 45. Bf3 {[%clk 0:00:06.4]} 45... Kh7 {[%clk 0:00:11]} 46. Qd2
{[%clk 0:00:06.7]} 46... Ng8 {[%clk 0:00:10.9]} 47. Bb2 {[%clk 0:00:06.6]} 47...
Ne7 {[%clk 0:00:10.9]} 48. Bc1 {[%clk 0:00:06.8]} 48... f6 {[%clk 0:00:11.4]}
49. Bd1 {[%clk 0:00:06.9]} 49... Qc6 {[%clk 0:00:11.6]} 50. Qe2 {[%clk
0:00:07.3]} 50... Qxa4 {[%clk 0:00:11.7]} 51. Qg4 {[%clk 0:00:06.8]} 51... Qc6
{[%clk 0:00:10.9]} 52. Ba3 {[%clk 0:00:02.6]} 52... Qd6 {[%clk 0:00:08.9]} 53.
Kf2 {[%clk 0:00:01.8]} 53... Qc6 {[%clk 0:00:05.8]} 54. Qf3 {[%clk 0:00:02.7]}
54... Qe6 {[%clk 0:00:05.5]} 55. Bc1 {[%clk 0:00:02.1]} 55... g5 {[%clk
0:00:05.3]} 56. Qg2 {[%clk 0:00:02.4]} 56... Kxh6 {[%clk 0:00:05.8]} 57. Qh2+
{[%clk 0:00:02.7]} 57... Kg7 {[%clk 0:00:06.5]} 58. Kg2 {[%clk 0:00:02.7]} 58...
Qf7 {[%clk 0:00:06.2]} 59. Qh3 {[%clk 0:00:02.7]} 59... Nbc6 {[%clk 0:00:06.2]}
60. Ba3 {[%clk 0:00:02.9]} 60... Nb4 {[%clk 0:00:04.1]} 61. Bh5 {[%clk
0:00:03.4]} 61... Qf8 {[%clk 0:00:02.8]} 62. Bd1 {[%clk 0:00:03.8]} 62... Qc8
{[%clk 0:00:03.3]} 63. Qh5 {[%clk 0:00:02.9]} 63... Qh8 {[%clk 0:00:03.4]} 64.
Qf3 {[%clk 0:00:03]} 64... Qf8 {[%clk 0:00:03.2]} 65. Qf1 {[%clk 0:00:03.4]}
65... Qd8 {[%clk 0:00:03.6]} 66. Qe1 {[%clk 0:00:03.9]} 66... Qd6 {[%clk
0:00:04.1]} 67. Qf1 {[%clk 0:00:04.2]} 67... Qc6 {[%clk 0:00:04.7]} 68. Qh1
{[%clk 0:00:04.7]} 68... c4 {[%clk 0:00:05.1]} 69. Qh3 {[%clk 0:00:04.2]} 69...
cxd3 {[%clk 0:00:05.1]} 70. cxd3 {[%clk 0:00:04.6]} 70... Qc3 {[%clk 0:00:05.6]}
71. Qe6 {[%clk 0:00:03.4]} 71... Qc7 {[%clk 0:00:05.6]} 72. Kf3 {[%clk
0:00:02.2]} 72... Nec6 {[%clk 0:00:03]} 73. Bb3 {[%clk 0:00:02.4]} 73... Qe7
{[%clk 0:00:03.3]} 74. Qg8+ {[%clk 0:00:02.5]} 74... Kh6 {[%clk 0:00:04]} 75.
Qh8+ {[%clk 0:00:02.9]} 75... Qh7 {[%clk 0:00:04.3]} 76. Qxf6+ {[%clk 0:00:03]}
76... Qg6 {[%clk 0:00:05]} 77. Qh8+ {[%clk 0:00:02.5]} 77... Qh7 {[%clk
0:00:04.9]} 78. Qf8+ {[%clk 0:00:02.8]} 78... Qg7 {[%clk 0:00:05.1]} 79. Qd6+
{[%clk 0:00:02.9]} 79... Kh7 {[%clk 0:00:04.8]} 80. Bxb4 {[%clk 0:00:03.2]}
80... Nxb4 {[%clk 0:00:04.3]} 81. Kg4 {[%clk 0:00:03.6]} 81... Qg6 {[%clk
0:00:04.3]} 82. Be6 {[%clk 0:00:03.5]} 82... Kh6 {[%clk 0:00:04.6]} 83. Qd7
{[%clk 0:00:02.6]} 83... Qg7 {[%clk 0:00:05.2]} 84. Qd8 {[%clk 0:00:02]} 84...
Nxd3 {[%clk 0:00:05.5]} 85. Bf5 {[%clk 0:00:02]} 85... Nf2+ {[%clk 0:00:06.1]}
86. Kf3 {[%clk 0:00:02.4]} 86... d3 {[%clk 0:00:05.9]} 87. Qd7 {[%clk
0:00:01.5]} 87... Qxd7 {[%clk 0:00:05.7]} 0-1

[Event "*** Titled Tuesday Blitz"]
[Site "Chess.com"]
[Date "2020.12.01"]
[Round "6"]
[White "Vesper2018"]
[Black "googlegoom"]
[Result "1-0"]
[WhiteElo "2652"]
[BlackElo "2460"]
[TimeControl "180+1"]
[EndTime "11:00:24 PST"]
[Termination "Vesper2018 won by resignation"]

1. e4 {[%clk 0:02:59.1]} 1... c5 {[%clk 0:02:58.2]} 2. Nc3 {[%clk 0:02:58.5]}
2... Nc6 {[%clk 0:02:57.9]} 3. Bb5 {[%clk 0:02:57.7]} 3... Nd4 {[%clk
0:02:56.2]} 4. Bc4 {[%clk 0:02:55.7]} 4... e6 {[%clk 0:02:56]} 5. Nge2 {[%clk
0:02:55]} 5... g6 {[%clk 0:02:55.9]} 6. O-O {[%clk 0:02:49.6]} 6... Bg7 {[%clk
0:02:55.5]} 7. d3 {[%clk 0:02:47.9]} 7... Ne7 {[%clk 0:02:55.3]} 8. Nxd4 {[%clk
0:02:21]} 8... cxd4 {[%clk 0:02:56.2]} 9. Nb5 {[%clk 0:02:21]} 9... d5 {[%clk
0:02:53.8]} 10. exd5 {[%clk 0:02:20.3]} 10... Nxd5 {[%clk 0:02:53.8]} 11. Bxd5
{[%clk 0:02:17.8]} 11... exd5 {[%clk 0:02:53.6]} 12. Bf4 {[%clk 0:02:10.7]}
12... O-O {[%clk 0:02:51.4]} 13. Nc7 {[%clk 0:02:02.4]} 13... Rb8 {[%clk
0:02:51.6]} 14. Nxd5 {[%clk 0:01:59.8]} 14... Ra8 {[%clk 0:02:40.8]} 15. Nc7
{[%clk 0:01:59.1]} 15... Rb8 {[%clk 0:02:41]} 16. Bg3 {[%clk 0:01:48.3]} 16...
Bf5 {[%clk 0:02:36.9]} 17. Nb5 {[%clk 0:01:45]} 17... Rc8 {[%clk 0:02:35.9]} 18.
Nd6 {[%clk 0:01:44.8]} 18... Rc5 {[%clk 0:02:35.9]} 19. Nxb7 {[%clk 0:01:43.3]}
1-0

[Event "*** Titled Tuesday Blitz"]
[Site "Chess.com"]
[Date "2020.12.01"]
[Round "6"]
[White "TheKingDoctor"]
[Black "Praslov"]
[Result "0-1"]
[WhiteElo "2063"]
[BlackElo "2417"]
[TimeControl "180+1"]
[EndTime "11:00:24 PST"]
[Termination "Praslov won by resignation"]

1. d4 {[%clk 0:03:00.9]} 1... d5 {[%clk 0:02:58.7]} 2. Bf4 {[%clk 0:03:00.7]}
2... Nf6 {[%clk 0:02:57.4]} 3. e3 {[%clk 0:02:57.8]} 3... c5 {[%clk 0:02:56.9]}
4. c3 {[%clk 0:02:57.7]} 4... Nc6 {[%clk 0:02:55.6]} 5. Nf3 {[%clk 0:02:57.7]}
5... Qb6 {[%clk 0:02:53.6]} 6. Qb3 {[%clk 0:02:56.5]} 6... c4 {[%clk 0:02:53.4]}
7. Qxb6 {[%clk 0:02:56]} 7... axb6 {[%clk 0:02:52.8]} 8. Na3 {[%clk 0:02:50.6]}
8... Bf5 {[%clk 0:02:46.1]} 9. Nb5 {[%clk 0:02:42.6]} 9... Ra5 {[%clk
0:02:42.4]} 10. a4 {[%clk 0:02:24.9]} 10... e6 {[%clk 0:02:29]} 11. Ne5 {[%clk
0:02:12.6]} 11... Nxe5 {[%clk 0:02:22.1]} 12. Bxe5 {[%clk 0:02:12.2]} 12... Kd7
{[%clk 0:02:15.9]} 13. Be2 {[%clk 0:02:04.1]} 13... Be7 {[%clk 0:02:13.7]} 14.
O-O {[%clk 0:02:03.3]} 14... Rha8 {[%clk 0:02:13.1]} 15. Bd1 {[%clk 0:02:01.6]}
15... Rxb5 {[%clk 0:02:08.3]} 0-1

[Event "*** Titled Tuesday Blitz"]
[Site "Chess.com"]
[Date "2020.12.01"]
[Round "6"]
[White "mortngabriel"]
[Black "catzapto"]
[Result "1-0"]
[WhiteElo "2281"]
[BlackElo "2125"]
[TimeControl "180+1"]
[EndTime "11:00:54 PST"]
[Termination "mortngabriel won by resignation"]

1. d4 {[%clk 0:02:58.7]} 1... Nf6 {[%clk 0:02:59.6]} 2. c4 {[%clk 0:02:58.6]}
2... e6 {[%clk 0:03:00.5]} 3. Nf3 {[%clk 0:02:52.9]} 3... c6 {[%clk 0:02:44.9]}
4. Nc3 {[%clk 0:02:45.5]} 4... Bb4 {[%clk 0:02:44.8]} 5. Qc2 {[%clk 0:02:36.7]}
5... O-O {[%clk 0:02:43.7]} 6. e4 {[%clk 0:02:32.2]} 6... d5 {[%clk 0:02:42.6]}
7. e5 {[%clk 0:02:29.1]} 7... Ne4 {[%clk 0:02:43]} 8. Bd3 {[%clk 0:02:28.7]}
8... f5 {[%clk 0:02:42.8]} 9. exf6 {[%clk 0:02:25.7]} 9... Nxf6 {[%clk
0:02:42.1]} 10. O-O {[%clk 0:02:18.8]} 10... a6 {[%clk 0:02:40.3]} 11. Bg5
{[%clk 0:02:15.7]} 11... Bd6 {[%clk 0:02:32.4]} 12. Bxh7+ {[%clk 0:02:10.3]}
12... Kh8 {[%clk 0:02:32.8]} 13. Bg6 {[%clk 0:02:01.7]} 13... Bd7 {[%clk
0:02:15.1]} 14. Ne5 {[%clk 0:02:00.9]} 14... Be8 {[%clk 0:02:11.3]} 15. Bxe8
{[%clk 0:01:47.8]} 15... Rxe8 {[%clk 0:02:10.8]} 16. Nf7+ {[%clk 0:01:47.2]}
16... Kg8 {[%clk 0:02:10.1]} 17. Nxd8 {[%clk 0:01:46]} 17... Rxd8 {[%clk
0:02:11]} 18. Bxf6 {[%clk 0:01:44.2]} 18... gxf6 {[%clk 0:02:10.8]} 19. Qg6+
{[%clk 0:01:44.4]} 1-0